[Event "DVM U20 2019"]
[Site "Braunschweig"]
[Date "2019.12.29"]
[Round "6"]
[White "Oberhofer, Cedric"]
[Black "Triantafillidis, Simeon"]
[Result "1/2-1/2"]
[ECO "C60"]
[WhiteElo "2260"]
[BlackElo "1931"]
[Annotator "NA"]
[PlyCount "62"]
[EventDate "2019.12.27"]
[EventType "team-tourn"]
[EventRounds "7"]
[EventCountry "GER"]
[SourceTitle "playchess.com"]
[Source "ChessBase"]
[SourceQuality "1"]
[WhiteTeam "SC Bavaria Regensburg"]
[BlackTeam "SF HN-Biberach"]
[TimeControl "40/5400+30:1800+30"]

1. e4 {[%emt 0:00:00]} e5 {[%emt 0:00:00]} 2. Nf3 {[%emt 0:00:00]} Nc6 {[%emt 0:00:00]} 3. Bb5 {[%emt 0:00:00]} g6 {[%emt 0:00:11]} 4. O-O {[%emt 0:00:29]} Bg7 {[%emt 0:00:12]} 5. c3 {[%emt 0:01:59]} Nge7 {[%emt 0:00:24]} 6. Re1 {[%emt 0:00:26]} O-O {[%emt 0:00:33]} 7. d3 {[%emt 0:04:42]} d6 {[%emt 0:02:41]} 8. Nbd2 {[%emt 0:02:14]} h6 {[%emt 0:15:57]} 9. Nf1 {[%emt 0:06:03]} f5 {[%emt 0:08:40]} 10. exf5 {[%emt 0:08:05]} Nxf5 {[%emt 0:00:29]} 11. Ng3 {[%emt 0:08:59]} Nxg3 {[%emt 0:07:53]} 12. hxg3 {[%emt 0:01:58]} Bg4 {[%emt 0:02:10]} 13. Qa4 {[%emt 0:02:06]} Bxf3 {[%emt 0:05:11]} 14. gxf3 {[%emt 0:00:06]} Qf6 {[%emt 0:01:14]} 15. Bxc6 {[%emt 0:09:45]} bxc6 {[%emt 0:00:12]} 16. Qxc6 {[%emt 0:00:05]} Qxf3 {[%emt 0:00:11]} 17. Qxf3 {[%emt 0:00:06]} Rxf3 {[%emt 0:00:06]} 18. Be3 {[%emt 0:00:05]} d5 {[%emt 0:06:09]} 19. d4 {[%emt 0:03:20]} e4 {[%emt 0:02:39]} 20. Rac1 {[%emt 0:02:31]} Rb8 {[%emt 0:01:50]} 21. b3 {[%emt 0:03:35]} g5 {[%emt 0:12:22]} 22. c4 {[%emt 0:03:52]} c5 {[%emt 0:01:33]} 23. Red1 {[%emt 0:02:17]} cxd4 {[%emt 0:02:41]} 24. Bxd4 {[%emt 0:00:05]} Bxd4 {[%emt 0:00:09]} 25. Rxd4 {[%emt 0:00:02]} dxc4 {[%emt 0:00:10]} 26. Rdxc4 {[%emt 0:00:35]} Rbf8 {[%emt 0:00:10]} 27. Rxe4 {[%emt 0:09:10]} Rxf2 {[%emt 0:00:14]} 28. Re7 {[%emt 0:02:19]} Rxa2 {[%emt 0:07:27]} 29. Rcc7 {[%emt 0:00:14]} Rff2 {[%emt 0:00:10]} 30. Rc8+ {[%emt 0:04:55]} Rf8 {[%emt 0:00:11]} 31. Rcc7 {[%emt 0:00:05]} Rff2 {[%emt 0:00:18] normal} 1/2-1/2

[Event "DVM U20 2019"]
[Site "Braunschweig"]
[Date "2019.12.29"]
[Round "6"]
[White "Biastoch, Bennet"]
[Black "Kartsev, Nikolay"]
[Result "1-0"]
[ECO "B66"]
[WhiteElo "2242"]
[BlackElo "2092"]
[Annotator "NA"]
[PlyCount "58"]
[EventDate "2019.12.27"]
[EventType "team-tourn"]
[EventRounds "7"]
[EventCountry "GER"]
[SourceTitle "playchess.com"]
[Source "ChessBase"]
[SourceQuality "1"]
[WhiteTeam "SG Aufbau Elbe Magdeburg"]
[BlackTeam "SF Brackel"]
[TimeControl "40/5400+30:1800+30"]

1. e4 {[%emt 0:00:00]} c5 {[%emt 0:06:48]} 2. Nf3 {[%emt 0:00:00]} d6 {[%emt 0:00:08]} 3. d4 {[%emt 0:00:00]} cxd4 {[%emt 0:00:04]} 4. Nxd4 {[%emt 0:00:08]} Nf6 {[%emt 0:00:03]} 5. Nc3 {[%emt 0:00:19]} Nc6 {[%emt 0:00:05]} 6. Bg5 {[%emt 0:00:34]} e6 {[%emt 0:00:04]} 7. Qd2 {[%emt 0:00:17]} a6 {[%emt 0:00:03]} 8. O-O-O {[%emt 0:00:36]} h6 {[%emt 0:00:02]} 9. Nxc6 {[%emt 0:00:32]} bxc6 {[%emt 0:00:10]} 10. Bf4 {[%emt 0:00:18]} d5 {[%emt 0:00:49]} 11. Qe3 {[%emt 0:00:36]} Qa5 {[%emt 0:00:42]} 12. Be2 {[%emt 0:00:30]} Bb4 {[%emt 0:00:37]} 13. Be5 {[%emt 0:00:21]} Be7 {[%emt 0:00:05]} 14. exd5 {[%emt 0:00:45]} cxd5 {[%emt 0:20:52]} 15. h4 {[%emt 0:01:24]} O-O {[%emt 0:18:54]} 16. Rh3 {[%emt 0:03:07]} Ne8 {[%emt 0:00:47]} 17. Rg3 {[%emt 0:24:38]} f6 {[%emt 0:03:23]} 18. Bf4 {[%emt 0:04:28]} Bc5 {[%emt 0:09:09]} 19. Qf3 {[%emt 0:04:18]} Kh8 {[%emt 0:04:38]} 20. Qh5 {[%emt 0:05:32]} Ra7 {[%emt 0:00:23]} 21. Rg6 {[%emt 0:02:59]} Rg8 {[%emt 0:17:30]} 22. Bxh6 {[%emt 0:03:46]} gxh6 {[%emt 0:00:03]} 23. Rxh6+ {[%emt 0:00:06]} Kg7 {[%emt 0:00:14]} 24. Rg6+ {[%emt 0:00:04]} Kf8 {[%emt 0:00:17]} 25. Rxg8+ {[%emt 0:00:02]} Kxg8 {[%emt 0:00:20]} 26. Qxe8+ {[%emt 0:00:06]} Kg7 {[%emt 0:00:10]} 27. Qxc8 {[%emt 0:00:54]} d4 {[%emt 0:02:31]} 28. Ne4 {[%emt 0:08:45]} Ba3 {[%emt 0:03:05]} 29. Qb8 {[%emt 0:05:50] normal} Rc7 {[%emt 0:02:33] normal} 1-0

[Event "DVM U20 2019"]
[Site "Braunschweig"]
[Date "2019.12.29"]
[Round "6"]
[White "Joeres, Stefan"]
[Black "Vuckovic, Zarko"]
[Result "0-1"]
[ECO "A45"]
[WhiteElo "2201"]
[BlackElo "2258"]
[Annotator "NA"]
[PlyCount "83"]
[EventDate "2019.12.27"]
[EventType "team-tourn"]
[EventRounds "7"]
[EventCountry "GER"]
[SourceTitle "playchess.com"]
[Source "ChessBase"]
[SourceQuality "1"]
[WhiteTeam "Karlsruher SF"]
[BlackTeam "SF Augsburg"]
[TimeControl "40/5400+30:1800+30"]

1. d4 {[%emt 0:00:00]} Nf6 {[%emt 0:00:00]} 2. Bf4 {[%emt 0:00:00]} e6 {[%emt 0:00:00]} 3. e3 {[%emt 0:00:00]} Be7 {[%emt 0:00:00]} 4. Bd3 {[%emt 0:00:00]} b6 {[%emt 0:00:00]} 5. h3 {[%emt 0:00:00]} Bb7 {[%emt 0:00:00]} 6. Nf3 {[%emt 0:00:01]} c5 {[%emt 0:00:00]} 7. Nbd2 {[%emt 0:00:09]} O-O {[%emt 0:00:26]} 8. O-O {[%emt 0:00:11]} cxd4 9. exd4 {[%emt 0:00:31]} d6 {[%emt 0:05:41]} 10. c3 {[%emt 0:00:47]} Nbd7 {[%emt 0:00:27]} 11. Qe2 {[%emt 0:00:29]} Re8 {[%emt 0:03:58]} 12. Ne4 {[%emt 0:22:42]} Nf8 {[%emt 0:06:00]} 13. Nxf6+ {[%emt 0:03:44]} Bxf6 {[%emt 0:00:15]} 14. Be4 {[%emt 0:00:09]} Bxe4 {[%emt 0:00:29]} 15. Qxe4 {[%emt 0:00:03]} Ng6 {[%emt 0:00:23]} 16. Bg3 {[%emt 0:00:19]} d5 {[%emt 0:00:10]} 17. Qd3 {[%emt 0:00:20]} a6 {[%emt 0:11:52]} 18. a4 {[%emt 0:09:51]} Ne7 {[%emt 0:02:10]} 19. Nd2 {[%emt 0:02:00]} Nf5 {[%emt 0:02:11]} 20. Bf4 {[%emt 0:15:52]} Qc8 {[%emt 0:00:59]} 21. Rfe1 {[%emt 0:00:52]} Qc6 {[%emt 0:00:19]} 22. a5 {[%emt 0:03:31]} b5 {[%emt 0:01:46]} 23. b4 {[%emt 0:05:47]} Rac8 {[%emt 0:07:38]} 24. Rac1 {[%emt 0:05:07]} Be7 {[%emt 0:01:12]} 25. Nb3 {[%emt 0:00:45]} Qc4 {[%emt 0:00:26]} 26. Qxc4 {[%emt 0:00:35]} Rxc4 {[%emt 0:01:06]} 27. Nd2 {[%emt 0:00:09]} Rc6 {[%emt 0:00:41]} 28. Nb3 {[%emt 0:00:18]} Rec8 {[%emt 0:08:19]} 29. Nc5 {[%emt 0:00:29]} Bxc5 {[%emt 0:00:01]} 30. dxc5 {[%emt 0:00:24]} Rd8 {[%emt 0:01:03]} 31. Rcd1 {[%emt 0:05:32]} f6 {[%emt 0:02:15]} 32. g4 {[%emt 0:05:10]} Ne7 {[%emt 0:00:18]} 33. Bd6 {[%emt 0:03:59]} Rdxd6 {[%emt 0:00:10]} 34. cxd6 {[%emt 0:00:01]} Rxd6 {[%emt 0:00:02]} 35. f4 {[%emt 0:02:17]} Kf7 {[%emt 0:01:00]} 36. Kf2 {[%emt 0:00:33]} Rc6 {[%emt 0:00:10]} 37. Re3 {[%emt 0:00:24]} h6 {[%emt 0:01:36]} 38. h4 {[%emt 0:01:00]} h5 {[%emt 0:00:03]} 39. Kf3 {[%emt 0:08:27]} hxg4+ {[%emt 0:00:17]} 40. Kxg4 {[%emt 0:00:02]} Nf5 {[%emt 0:00:16]} 41. Red3 {[%emt 0:30:27]} Rc4 {[%emt 0:30:36]} 42. Re1 {[%emt 0:04:54] normal} 0-1

[Event "DVM U20 2019"]
[Site "Braunschweig"]
[Date "2019.12.29"]
[Round "6"]
[White "Fluechter, Gregor"]
[Black "Sieber, Fiona"]
[Result "1-0"]
[ECO "B21"]
[WhiteElo "2174"]
[BlackElo "2277"]
[Annotator "NA"]
[PlyCount "80"]
[EventDate "2019.12.27"]
[EventType "team-tourn"]
[EventRounds "7"]
[EventCountry "GER"]
[SourceTitle "playchess.com"]
[Source "ChessBase"]
[SourceQuality "1"]
[WhiteTeam "SF Brackel"]
[BlackTeam "SG Aufbau Elbe Magdeburg"]
[TimeControl "40/5400+30:1800+30"]

1. e4 {[%emt 0:00:00]} c5 {[%emt 0:00:00]} 2. f4 {[%emt 0:00:19]} d5 {[%emt 0:00:00]} 3. exd5 {[%emt 0:00:05]} Nf6 {[%emt 0:00:00]} 4. Bb5+ {[%emt 0:00:06]} Nbd7 {[%emt 0:00:00]} 5. Nf3 {[%emt 0:00:08]} a6 {[%emt 0:00:04]} 6. Bxd7+ {[%emt 0:00:08]} Bxd7 {[%emt 0:00:04]} 7. Ne5 {[%emt 0:00:07]} Bf5 {[%emt 0:00:09]} 8. c4 {[%emt 0:00:21]} e6 {[%emt 0:00:05]} 9. Nc3 {[%emt 0:00:26]} exd5 {[%emt 0:03:05]} 10. cxd5 {[%emt 0:00:12]} Bd6 {[%emt 0:20:35]} 11. O-O {[%emt 0:05:41]} O-O {[%emt 0:01:13]} 12. Qf3 {[%emt 0:02:13]} h5 {[%emt 0:13:33]} 13. d3 {[%emt 0:11:56]} Re8 {[%emt 0:02:59]} 14. Bd2 {[%emt 0:10:38]} b5 {[%emt 0:13:15]} 15. Rae1 {[%emt 0:11:29]} g6 {[%emt 0:03:43]} 16. Ne4 {[%emt 0:08:52]} Nxd5 {[%emt 0:06:14]} 17. Nxf7 {[%emt 0:05:03]} Kxf7 {[%emt 0:04:25]} 18. Ng5+ {[%emt 0:00:13]} Kf8 {[%emt 0:04:10]} 19. Rxe8+ {[%emt 0:07:25]} Qxe8 {[%emt 0:00:15]} 20. Qxd5 {[%emt 0:00:06]} Rd8 {[%emt 0:00:46]} 21. Re1 {[%emt 0:05:31]} Qd7 {[%emt 0:01:43]} 22. Bc3 {[%emt 0:04:41]} Bc7 {[%emt 0:06:29]} 23. Qxc5+ {[%emt 0:01:38]} Qd6 {[%emt 0:00:11]} 24. Qxd6+ {[%emt 0:01:21]} Bxd6 {[%emt 0:00:06]} 25. Ne6+ {[%emt 0:00:29]} Bxe6 {[%emt 0:00:57]} 26. Rxe6 {[%emt 0:00:02]} Bc5+ {[%emt 0:01:03]} 27. Kf1 {[%emt 0:02:23]} b4 {[%emt 0:00:56]} 28. Be5 {[%emt 0:04:31]} Rxd3 {[%emt 0:00:16]} 29. Rxa6 {[%emt 0:00:53]} Rd1+ {[%emt 0:04:19]} 30. Ke2 {[%emt 0:00:03]} Ra1 {[%emt 0:00:04]} 31. Kd3 {[%emt 0:03:34]} Be7 {[%emt 0:01:21]} 32. Rxg6 {[%emt 0:04:11]} Rxa2 {[%emt 0:00:06]} 33. Rh6 {[%emt 0:02:32]} h4 {[%emt 0:00:25]} 34. f5 {[%emt 0:01:11]} Bg5 {[%emt 0:02:18]} 35. Rh5 {[%emt 0:00:32]} Ra5 {[%emt 0:02:20]} 36. Ke4 {[%emt 0:03:15]} Bc1 {[%emt 0:01:26]} 37. Rxh4 {[%emt 0:00:25]} b3 {[%emt 0:00:05]} 38. Rh8+ {[%emt 0:02:18]} Kf7 {[%emt 0:00:01]} 39. Rb8 {[%emt 0:00:42]} Ra4+ {[%emt 0:00:21]} 40. Kf3 {[%emt 0:00:49]} Ra5 {[%emt 0:00:38] normal} 1-0

[Event "DVM U20 2019"]
[Site "Braunschweig"]
[Date "2019.12.29"]
[Round "6"]
[White "Schimnatkowski, Lukas"]
[Black "Holinka, Henning"]
[Result "1/2-1/2"]
[ECO "B06"]
[WhiteElo "2157"]
[BlackElo "2233"]
[Annotator "NA"]
[PlyCount "63"]
[EventDate "2019.12.27"]
[EventType "team-tourn"]
[EventRounds "7"]
[EventCountry "GER"]
[SourceTitle "playchess.com"]
[Source "ChessBase"]
[SourceQuality "1"]
[WhiteTeam "SF Essen-Katernberg"]
[BlackTeam "Hamburger SK"]
[TimeControl "40/5400+30:1800+30"]

1. e4 {[%emt 0:00:00]} g6 {[%emt 0:00:00]} 2. d4 {[%emt 0:00:01]} Bg7 {[%emt 0:00:00]} 3. Nf3 {[%emt 0:02:21]} d6 {[%emt 0:00:00]} 4. h3 {[%emt 0:00:59]} Nd7 {[%emt 0:01:09]} 5. Be3 {[%emt 0:02:41]} b6 {[%emt 0:03:39]} 6. Nbd2 {[%emt 0:03:27]} Bb7 {[%emt 0:02:48]} 7. Bd3 {[%emt 0:00:25]} e5 {[%emt 0:03:43]} 8. c3 {[%emt 0:01:13]} Ne7 {[%emt 0:02:37]} 9. a4 {[%emt 0:04:55]} a6 {[%emt 0:02:04]} 10. a5 {[%emt 0:09:27]} b5 {[%emt 0:05:02]} 11. Qc2 {[%emt 0:13:05]} c5 {[%emt 0:02:29]} 12. dxe5 {[%emt 0:07:05]} dxe5 {[%emt 0:00:47]} 13. O-O {[%emt 0:01:58]} Nc6 {[%emt 0:03:32]} 14. Rfd1 {[%emt 0:02:03]} O-O {[%emt 0:02:29]} 15. Be2 {[%emt 0:02:36]} Nxa5 {[%emt 0:17:42]} 16. Nf1 {[%emt 0:03:02]} Nc6 {[%emt 0:04:05]} 17. Bxc5 {[%emt 0:00:37]} Re8 {[%emt 0:00:24]} 18. Ne3 {[%emt 0:05:09]} Rc8 {[%emt 0:03:20]} 19. b4 {[%emt 0:17:07]} Bf8 {[%emt 0:12:26]} 20. Bxf8 {[%emt 0:01:46]} Kxf8 {[%emt 0:00:18]} 21. Qb3 {[%emt 0:01:15]} Ncb8 {[%emt 0:14:08]} 22. h4 {[%emt 0:06:29]} Qe7 {[%emt 0:01:34]} 23. Nd5 {[%emt 0:00:35]} Bxd5 {[%emt 0:01:08]} 24. Rxd5 {[%emt 0:00:16]} f6 {[%emt 0:01:29]} 25. Rad1 {[%emt 0:01:16]} Nb6 {[%emt 0:00:46]} 26. Rd6 {[%emt 0:00:14]} Nc4 {[%emt 0:00:27]} 27. Bxc4 {[%emt 0:00:14]} Rxc4 {[%emt 0:00:13]} 28. h5 {[%emt 0:00:46]} Rxe4 {[%emt 0:03:21] normal} 29. hxg6 {[%emt 0:01:58]} hxg6 {[%emt 0:00:11] normal} 30. Qc2 {[%emt 0:01:19] normal} Rg4 {[%emt 0:02:40] normal} 31. Nh2 {[%emt 0:01:04]} Rg5 32. Nf3 {[%emt 0:00:21]} 1/2-1/2

[Event "DVM U20 2019"]
[Site "Braunschweig"]
[Date "2019.12.29"]
[Round "6"]
[White "Thomsen, Phil"]
[Black "Wendler, David"]
[Result "1-0"]
[ECO "B35"]
[WhiteElo "2147"]
[BlackElo "2204"]
[Annotator "NA"]
[PlyCount "74"]
[EventDate "2019.12.27"]
[EventType "team-tourn"]
[EventRounds "7"]
[EventCountry "GER"]
[SourceTitle "playchess.com"]
[Source "ChessBase"]
[SourceQuality "1"]
[WhiteTeam "Sges Bensheim"]
[BlackTeam "SK Bebenhausen"]
[TimeControl "40/5400+30:1800+30"]

1. e4 {[%emt 0:00:00]} c5 {[%emt 0:00:00]} 2. Nf3 {[%emt 0:00:00]} Nc6 {[%emt 0:00:00]} 3. d4 {[%emt 0:00:00]} cxd4 {[%emt 0:00:00]} 4. Nxd4 {[%emt 0:00:00]} g6 {[%emt 0:00:04]} 5. Be3 {[%emt 0:00:18]} Nf6 {[%emt 0:00:20]} 6. Nc3 {[%emt 0:00:10]} Bg7 {[%emt 0:00:07]} 7. Bc4 {[%emt 0:00:07]} O-O {[%emt 0:00:13]} 8. Bb3 {[%emt 0:00:04]} d6 {[%emt 0:00:09]} 9. f3 {[%emt 0:00:04]} Bd7 {[%emt 0:00:13]} 10. h4 {[%emt 0:00:26]} h5 {[%emt 0:00:04]} 11. Qd2 {[%emt 0:00:05]} Rc8 {[%emt 0:00:10]} 12. O-O-O {[%emt 0:01:14]} Ne5 {[%emt 0:00:25]} 13. Bg5 {[%emt 0:03:27]} Rc5 {[%emt 0:00:10]} 14. Kb1 {[%emt 0:01:36]} b5 {[%emt 0:00:11]} 15. Nd5 {[%emt 0:21:16]} Nxd5 {[%emt 0:11:00]} 16. Bxd5 {[%emt 0:03:15]} Nc4 {[%emt 0:10:47]} 17. Qf2 {[%emt 0:04:37]} Nb6 {[%emt 0:10:32]} 18. Nb3 {[%emt 0:10:05]} Rc7 {[%emt 0:03:19]} 19. g4 {[%emt 0:05:38]} Nxd5 {[%emt 0:01:44]} 20. Rxd5 {[%emt 0:01:13]} f6 {[%emt 0:09:43]} 21. Be3 {[%emt 0:04:50]} Bc6 {[%emt 0:01:40]} 22. Rdd1 {[%emt 0:06:42]} hxg4 {[%emt 0:01:57]} 23. h5 {[%emt 0:00:33]} gxh5 {[%emt 0:07:47]} 24. Nd4 {[%emt 0:04:23]} Bd7 {[%emt 0:02:18]} 25. Rxh5 {[%emt 0:04:37]} e5 {[%emt 0:00:55]} 26. Nf5 {[%emt 0:00:56]} Bxf5 {[%emt 0:00:23]} 27. exf5 {[%emt 0:02:11]} gxf3 {[%emt 0:02:31]} 28. Qxf3 {[%emt 0:04:58]} Qa8 {[%emt 0:00:18]} 29. Qg4 {[%emt 0:04:18]} Rc4 {[%emt 0:06:43]} 30. Qg6 {[%emt 0:03:20]} Qe8 {[%emt 0:00:20]} 31. Qxg7+ {[%emt 0:00:31]} Kxg7 {[%emt 0:00:09]} 32. Rg1+ {[%emt 0:00:04]} Qg6 {[%emt 0:00:29]} 33. Rxg6+ {[%emt 0:00:13]} Kf7 {[%emt 0:00:04]} 34. Rh7+ {[%emt 0:00:23]} Ke8 {[%emt 0:00:06]} 35. b3 {[%emt 0:01:34]} Re4 {[%emt 0:00:47]} 36. Bxa7 {[%emt 0:00:48]} Rf7 {[%emt 0:01:11]} 37. Rg8+ {[%emt 0:00:17]} Ke7 {[%emt 0:00:08] normal} 1-0

[Event "DVM U20 2019"]
[Site "Braunschweig"]
[Date "2019.12.29"]
[Round "6"]
[White "Lutz, Ruben"]
[Black "Yankelevich, Michael"]
[Result "1/2-1/2"]
[ECO "D25"]
[WhiteElo "2132"]
[BlackElo "2064"]
[Annotator "NA"]
[PlyCount "57"]
[EventDate "2019.12.27"]
[EventType "team-tourn"]
[EventRounds "7"]
[EventCountry "GER"]
[SourceTitle "playchess.com"]
[Source "ChessBase"]
[SourceQuality "1"]
[WhiteTeam "USV TU Dresden"]
[BlackTeam "SG Trier"]
[TimeControl "40/5400+30:1800+30"]

1. d4 {[%emt 0:00:00]} d5 {[%emt 0:00:34]} 2. c4 {[%emt 0:00:00]} dxc4 {[%emt 0:00:09]} 3. Nf3 {[%emt 0:00:05]} Nf6 {[%emt 0:00:10]} 4. e3 {[%emt 0:00:11]} a6 {[%emt 0:00:05]} 5. Bxc4 {[%emt 0:00:12]} b5 {[%emt 0:00:09]} 6. Bd3 {[%emt 0:01:22]} Bb7 {[%emt 0:00:20]} 7. O-O {[%emt 0:00:30]} e6 {[%emt 0:00:12]} 8. a4 {[%emt 0:02:59]} b4 {[%emt 0:00:23]} 9. b3 {[%emt 0:01:38]} Nbd7 {[%emt 0:00:16]} 10. Bb2 {[%emt 0:02:14]} c5 {[%emt 0:00:33]} 11. Nbd2 {[%emt 0:00:18]} Be7 {[%emt 0:00:15]} 12. Rc1 {[%emt 0:04:56]} O-O {[%emt 0:01:23]} 13. Qe2 {[%emt 0:02:54]} cxd4 {[%emt 0:01:21]} 14. Nxd4 {[%emt 0:07:09]} Ne5 {[%emt 0:02:00]} 15. Bb1 {[%emt 0:05:25]} Ng6 {[%emt 0:06:31]} 16. Nc6 {[%emt 0:06:07]} Qd7 {[%emt 0:00:14]} 17. Nxe7+ {[%emt 0:00:10]} Qxe7 {[%emt 0:00:05]} 18. Nf3 {[%emt 0:05:03]} Rac8 {[%emt 0:00:58]} 19. Bd3 {[%emt 0:18:56]} a5 {[%emt 0:06:02]} 20. Ne5 {[%emt 0:02:42]} Nd5 {[%emt 0:01:24]} 21. Nxg6 {[%emt 0:00:59]} hxg6 {[%emt 0:00:14]} 22. Bc4 {[%emt 0:02:22]} Rfd8 {[%emt 0:00:58]} 23. Rfd1 {[%emt 0:16:39]} Nb6 {[%emt 0:01:25]} 24. Ba6 {[%emt 0:04:15]} Rxc1 {[%emt 0:01:53]} 25. Rxc1 {[%emt 0:00:16]} Bd5 {[%emt 0:00:40]} 26. Bd4 {[%emt 0:03:04]} Nd7 {[%emt 0:01:27]} 27. Bc4 {[%emt 0:04:15]} Bb7 {[%emt 0:03:10]} 28. Ba6 {[%emt 0:03:53]} Bd5 {[%emt 0:00:18]} 29. Bc4 {normal} 1/2-1/2

[Event "DVM U20 2019"]
[Site "Braunschweig"]
[Date "2019.12.29"]
[Round "6"]
[White "Doll, Alexander"]
[Black "Melde, Benjamin"]
[Result "0-1"]
[ECO "B22"]
[WhiteElo "2127"]
[BlackElo "2120"]
[Annotator "NA"]
[PlyCount "66"]
[EventDate "2019.12.27"]
[EventType "team-tourn"]
[EventRounds "7"]
[EventCountry "GER"]
[SourceTitle "playchess.com"]
[Source "ChessBase"]
[SourceQuality "1"]
[WhiteTeam "OSG Baden-Baden"]
[BlackTeam "SK Turm Kleve"]
[TimeControl "40/5400+30:1800+30"]

1. e4 {[%emt 0:00:00]} c5 {[%emt 0:00:00]} 2. c3 {[%emt 0:00:00]} Nf6 {[%emt 0:00:00]} 3. e5 {[%emt 0:00:00]} Nd5 {[%emt 0:00:00]} 4. Bc4 {[%emt 0:00:00]} Nb6 {[%emt 0:00:00]} 5. Bb3 {[%emt 0:00:00]} d5 {[%emt 0:00:37]} 6. exd6 {[%emt 0:00:01]} Qxd6 {[%emt 0:00:14]} 7. Nf3 {[%emt 0:00:41]} c4 {[%emt 0:00:17]} 8. Bc2 {[%emt 0:00:04]} Qe6+ {[%emt 0:00:04]} 9. Qe2 {[%emt 0:00:30]} Qxe2+ {[%emt 0:00:04]} 10. Kxe2 {[%emt 0:00:02]} Nc6 {[%emt 0:00:09]} 11. b3 {[%emt 0:00:44]} e5 {[%emt 0:04:19]} 12. Na3 {[%emt 0:07:14]} Be6 {[%emt 0:09:37]} 13. Re1 {[%emt 0:19:58]} f6 {[%emt 0:16:38]} 14. Nxc4 {[%emt 0:13:17]} Nxc4 {[%emt 0:00:13]} 15. bxc4 {[%emt 0:00:02]} Bxc4+ {[%emt 0:00:08]} 16. d3 {[%emt 0:00:13]} Bd5 {[%emt 0:08:28]} 17. a4 {[%emt 0:03:44]} O-O-O {[%emt 0:01:02]} 18. Be3 {[%emt 0:00:52]} Bd6 {[%emt 0:15:27]} 19. Nd2 {[%emt 0:07:37]} Rhe8 {[%emt 0:02:35]} 20. Kf1 {[%emt 0:05:13]} Bc7 {[%emt 0:03:08]} 21. Ra3 {[%emt 0:04:26]} Bd6 {[%emt 0:01:27]} 22. Raa1 {[%emt 0:03:06]} Bc7 {[%emt 0:00:05]} 23. Ra3 {[%emt 0:00:09]} Bf7 {[%emt 0:01:00]} 24. f3 {[%emt 0:05:33]} Bd6 {[%emt 0:12:45]} 25. Raa1 {[%emt 0:00:22]} Bc7 {[%emt 0:00:05]} 26. Ra3 {[%emt 0:00:07]} Bd6 {[%emt 0:00:31]} 27. Raa1 {[%emt 0:00:04]} Bg6 {[%emt 0:00:04]} 28. Ne4 {[%emt 0:01:52]} Bc7 {[%emt 0:00:27]} 29. Ra3 {[%emt 0:02:22]} Ba5 {[%emt 0:15:02]} 30. Rb1 {[%emt 0:02:38]} f5 {[%emt 0:00:47]} 31. Nf2 {[%emt 0:04:45]} b6 {[%emt 0:00:33]} 32. f4 {[%emt 0:09:23]} Kb7 {[%emt 0:02:03] normal} 33. g3 {[%emt 0:06:48]} Bf7 {[%emt 0:01:06] normal} 0-1

[Event "DVM U20 2019"]
[Site "Braunschweig"]
[Date "2019.12.29"]
[Round "6"]
[White "Engel, Robert"]
[Black "Gorainow, Nikita"]
[Result "1/2-1/2"]
[ECO "B31"]
[WhiteElo "2075"]
[BlackElo "1946"]
[Annotator "NA"]
[PlyCount "66"]
[EventDate "2019.12.27"]
[EventType "team-tourn"]
[EventRounds "7"]
[EventCountry "GER"]
[SourceTitle "playchess.com"]
[Source "ChessBase"]
[SourceQuality "1"]
[WhiteTeam "Hamburger SK"]
[BlackTeam "SF Essen-Katernberg"]
[TimeControl "40/5400+30:1800+30"]

1. e4 c5 2. Nf3 Nc6 3. Bb5 g6 4. Bxc6 bxc6 5. O-O Bg7 6. Re1 Nh6 {[%emt 0:08:51]} 7. c3 O-O 8. d4 {[%emt 0:04:37]} cxd4 {[%emt 0:01:59]} 9. cxd4 {[%emt 0:00:08]} d5 {[%emt 0:05:42]} 10. e5 {[%emt 0:19:14]} f6 {[%emt 0:01:10]} 11. Qc2 {[%emt 0:06:47]} Bg4 {[%emt 0:13:58]} 12. Nbd2 {[%emt 0:15:20]} Qb6 {[%emt 0:06:20]} 13. h3 {[%emt 0:09:28]} Bf5 {[%emt 0:06:25]} 14. Qa4 {[%emt 0:03:39]} Nf7 {[%emt 0:05:28]} 15. exf6 {[%emt 0:09:57]} exf6 {[%emt 0:03:22]} 16. b3 {[%emt 0:01:02]} Rfe8 {[%emt 0:01:31]} 17. Ba3 {[%emt 0:00:29]} Qb5 {[%emt 0:07:31]} 18. Rxe8+ {[%emt 0:07:25]} Rxe8 {[%emt 0:00:59]} 19. Qxa7 {[%emt 0:00:05]} Bh6 {[%emt 0:02:40]} 20. Nf1 {[%emt 0:03:51]} Ng5 {[%emt 0:13:38]} 21. Nxg5 {[%emt 0:00:50]} fxg5 {[%emt 0:00:06]} 22. Ne3 {[%emt 0:02:48]} Bc8 {[%emt 0:04:44]} 23. Bd6 {[%emt 0:01:53]} Bg7 {[%emt 0:00:30]} 24. Qc5 {[%emt 0:01:17]} Qb7 {[%emt 0:02:34]} 25. b4 {[%emt 0:02:46]} Re4 {[%emt 0:02:44]} 26. Rd1 {[%emt 0:01:36]} Bd7 {[%emt 0:03:17]} 27. Rd2 {[%emt 0:06:07]} h5 {[%emt 0:00:36]} 28. a4 {[%emt 0:00:27]} g4 {[%emt 0:00:57]} 29. hxg4 {[%emt 0:00:11]} hxg4 {[%emt 0:00:09]} 30. g3 {[%emt 0:00:57]} Bh6 {[%emt 0:01:30]} 31. Be5 {[%emt 0:02:41]} Bf8 {[%emt 0:01:02]} 32. Bd6 {[%emt 0:00:00]} Bh6 {[%emt 0:00:09]} 33. Be5 {[%emt 0:00:40]} Bf8 {[%emt 0:00:09] normal} 1/2-1/2

[Event "DVM U20 2019"]
[Site "Braunschweig"]
[Date "2019.12.29"]
[Round "6"]
[White "Reimer, Philip"]
[Black "Tiedemann, Fin Niklas"]
[Result "1-0"]
[ECO "C52"]
[WhiteElo "2065"]
[BlackElo "1936"]
[Annotator "NA"]
[PlyCount "48"]
[EventDate "2019.12.27"]
[EventType "team-tourn"]
[EventRounds "7"]
[EventCountry "GER"]
[SourceTitle "playchess.com"]
[Source "ChessBase"]
[SourceQuality "1"]
[WhiteTeam "SK Lehrte 1919"]
[BlackTeam "Lübecker SV"]
[TimeControl "40/5400+30:1800+30"]

1. e4 {[%emt 0:00:00]} e5 {[%emt 0:00:00]} 2. Nf3 {[%emt 0:00:00]} Nc6 {[%emt 0:00:00]} 3. Bc4 {[%emt 0:00:00]} Bc5 {[%emt 0:00:55]} 4. b4 {[%emt 0:00:00]} Bxb4 {[%emt 0:00:04]} 5. c3 {[%emt 0:00:00]} Ba5 {[%emt 0:02:44]} 6. d4 {[%emt 0:00:00]} exd4 {[%emt 0:00:03]} 7. O-O {[%emt 0:00:00]} d6 {[%emt 0:12:31]} 8. Qb3 {[%emt 0:02:42]} Qe7 {[%emt 0:01:00]} 9. e5 {[%emt 0:02:47]} dxe5 {[%emt 0:02:59]} 10. Ba3 {[%emt 0:00:07]} Qf6 {[%emt 0:02:43]} 11. Nbd2 {[%emt 0:19:40]} Bf5 {[%emt 0:06:49]} 12. cxd4 {[%emt 0:20:18]} O-O-O {[%emt 0:02:52]} 13. dxe5 {[%emt 0:11:10]} Nxe5 {[%emt 0:01:11]} 14. Nxe5 {[%emt 0:02:33]} Qxe5 {[%emt 0:01:41]} 15. Bb2 {[%emt 0:02:15]} Qf4 {[%emt 0:03:32]} 16. Bxg7 {[%emt 0:03:03]} Rxd2 {[%emt 0:01:08]} 17. Bxh8 {[%emt 0:01:34]} Nh6 {[%emt 0:05:58]} 18. Qa4 {[%emt 0:05:26]} Bd7 {[%emt 0:06:51]} 19. Qxa5 {[%emt 0:01:05]} Ng4 {[%emt 0:00:04]} 20. g3 {[%emt 0:11:48]} Qf3 {[%emt 0:00:51]} 21. Rac1 Ne3 {[%emt 0:23:48]} 22. Qxc7+ {[%emt 0:11:10]} Kxc7 {[%emt 0:00:03]} 23. Bd5+ {[%emt 0:00:17]} Bc6 {[%emt 0:00:20]} 24. Bxf3 {[%emt 0:00:06]} Nxf1 {[%emt 0:00:05] normal} 1-0